[Event "FIDE Open World Rapid 2024"]
[Site "New York"]
[Date "2024.12.28"]
[Round "8.26"]
[White "Macovei, Andrei"]
[Black "Dragnev, Valentin"]
[Result "1/2-1/2"]
[ECO "B12"]
[WhiteElo "2477"]
[BlackElo "2563"]
[Annotator "ChessBase"]
[PlyCount "174"]
[EventDate "2024.12.14"]
[EventType "swiss"]
[EventCountry "USA"]
[SourceTitle "playchess.com"]
[Source "ChessBase"]
[SourceQuality "1"]
[TimeControl "900+10"]

1. e4 {[%emt 0:00:01]} c6 {[%emt 0:00:01]} 2. d4 {[%emt 0:00:08]} d5 {[%emt 0:00:02]} 3. e5 {[%emt 0:00:01]} Bf5 {[%emt 0:00:04]} 4. Nf3 {[%emt 0:00:03]} e6 {[%emt 0:00:07]} 5. Be2 {[%emt 0:00:01]} Bg6 {[%emt 0:00:19]} 6. O-O {[%emt 0:00:06]} Nd7 {[%emt 0:00:08]} 7. a4 {[%emt 0:00:09]} Nh6 {[%emt 0:00:45]} 8. a5 {[%emt 0:00:02]} a6 {[%emt 0:00:02]} 9. c3 {[%emt 0:00:30]} c5 {[%emt 0:00:10]} 10. Bxh6 {[%emt 0:00:40]} gxh6 {[%emt 0:00:02]} 11. c4 {[%emt 0:00:00]} Bg7 {[%emt 0:02:57]} 12. cxd5 {[%emt 0:00:21]} exd5 {[%emt 0:00:01]} 13. Nc3 {[%emt 0:00:01]} O-O {[%emt 0:00:16]} 14. Nxd5 {[%emt 0:00:21]} cxd4 {[%emt 0:00:16]} 15. Qxd4 {[%emt 0:02:26]} Re8 {[%emt 0:00:03]} 16. Qa4 {[%emt 0:08:19]} Rc8 {[%emt 0:01:28]} 17. Ne3 {[%emt 0:00:59]} Nxe5 {[%emt 0:01:09]} 18. Rfd1 {[%emt 0:00:03]} Qf6 {[%emt 0:00:43]} 19. Rd2 {[%emt 0:01:26]} Qc6 {[%emt 0:01:26]} 20. Qb3 {[%emt 0:00:46]} Be4 {[%emt 0:00:19]} 21. Nxe5 {[%emt 0:00:23]} Bxe5 {[%emt 0:00:32]} 22. Bc4 {[%emt 0:00:27]} Qg6 {[%emt 0:00:56]} 23. Rd7 {[%emt 0:00:34]} Rf8 {[%emt 0:03:44]} 24. Bd5 {[%emt 0:00:00]} Rc7 {[%emt 0:02:21]} 25. Rxc7 {[%emt 0:00:22]} Bxc7 {[%emt 0:00:01]} 26. Qxb7 {[%emt 0:00:06]} Qd6 {[%emt 0:00:33]} 27. Bxe4 {[%emt 0:00:20]} Qxh2+ {[%emt 0:00:01]} 28. Kf1 {[%emt 0:00:00]} Rb8 {[%emt 0:00:32]} 29. Qc6 {[%emt 0:00:27]} Qh1+ {[%emt 0:00:39]} 30. Ke2 {[%emt 0:00:01]} Qxa1 {[%emt 0:00:21]} 31. Qxc7 {[%emt 0:00:05]} Qxb2+ {[%emt 0:00:07]} 32. Bc2 {[%emt 0:00:26]} Qb5+ {[%emt 0:00:08]} 33. Bd3 {[%emt 0:00:20]} Qh5+ {[%emt 0:00:05]} 34. g4 {[%emt 0:00:10]} Rb2+ {[%emt 0:00:03]} 35. Bc2 {[%emt 0:00:09]} Qb5+ {[%emt 0:00:09]} 36. Kf3 {[%emt 0:00:06]} Qb7+ {[%emt 0:00:22]} 37. Qxb7 {[%emt 0:00:01]} Rxb7 {[%emt 0:00:01]} 38. Bd3 {[%emt 0:00:02]} Rb3 {[%emt 0:00:04]} 39. Ke4 {[%emt 0:00:12]} Ra3 {[%emt 0:00:07]} 40. Nc4 {[%emt 0:00:02]} Ra2 {[%emt 0:00:02]} 41. f3 {[%emt 0:00:04]} Kf8 {[%emt 0:00:14]} 42. Kd4 {[%emt 0:00:02]} h5 {[%emt 0:00:13]} 43. gxh5 {[%emt 0:00:10]} Rh2 {[%emt 0:00:12]} 44. Bxh7 {[%emt 0:00:16]} Rxh5 {[%emt 0:00:02]} 45. Be4 {[%emt 0:00:01]} Ke7 {[%emt 0:00:08]} 46. Bb7 {[%emt 0:00:11]} Rh6 {[%emt 0:00:01]} 47. Kc5 {[%emt 0:00:05]} Kd7 {[%emt 0:00:06]} 48. Nb6+ {[%emt 0:00:11]} Ke6 {[%emt 0:00:33]} 49. Bxa6 {[%emt 0:00:07]} Rh5+ {[%emt 0:00:01]} 50. Kb4 {[%emt 0:00:02]} Kd6 {[%emt 0:00:16]} 51. Bb7 {[%emt 0:00:16]} Kc7 {[%emt 0:00:17]} 52. Bd5 {[%emt 0:00:18]} Rf5 {[%emt 0:00:05]} 53. Kc5 {[%emt 0:00:13]} Kb8 {[%emt 0:00:09]} 54. a6 {[%emt 0:00:24]} Ka7 {[%emt 0:00:30]} 55. Kb5 {[%emt 0:00:19]} Kb8 {[%emt 0:00:02]} 56. Kb4 {[%emt 0:00:47]} Ka7 {[%emt 0:00:21]} 57. Kb5 {[%emt 0:00:19]} Kb8 {[%emt 0:00:01]} 58. Kc6 {[%emt 0:00:15]} Rf6+ {[%emt 0:00:21]} 59. Kc5 {[%emt 0:00:10]} Ka7 {[%emt 0:00:01]} 60. Nc8+ {[%emt 0:00:09]} Kxa6 {[%emt 0:00:05]} 61. Nd6 {[%emt 0:00:01]} Ka7 {[%emt 0:00:21]} 62. Nxf7 {[%emt 0:00:05]} Kb8 {[%emt 0:00:00]} 63. Kd4 {[%emt 0:00:07]} Kc7 {[%emt 0:00:01]} 64. Ke5 {[%emt 0:00:01]} Ra6 {[%emt 0:00:03]} 65. Be6 {[%emt 0:00:06]} Ra5+ {[%emt 0:00:20]} 66. Kf6 {[%emt 0:00:02]} Ra4 {[%emt 0:00:02]} 67. Ke5 {[%emt 0:00:19]} Ra5+ {[%emt 0:00:04]} 68. Bd5 {[%emt 0:00:02]} Kd7 {[%emt 0:00:08]} 69. f4 {[%emt 0:00:05]} Ra1 {[%emt 0:00:06]} 70. f5 {[%emt 0:00:08]} Ke7 {[%emt 0:00:40]} 71. f6+ {[%emt 0:00:01]} Kf8 {[%emt 0:00:01]} 72. Ng5 {[%emt 0:00:06]} Re1+ {[%emt 0:00:03]} 73. Kd6 {[%emt 0:00:15]} Rf1 {[%emt 0:00:03]} 74. Ke6 {[%emt 0:00:10]} Rf2 {[%emt 0:00:33]} 75. Be4 {[%emt 0:00:07]} Rf1 {[%emt 0:00:12]} 76. Bf3 {[%emt 0:00:30]} Re1+ {[%emt 0:00:11]} 77. Kf5 {[%emt 0:00:01]} Rf1 {[%emt 0:00:03]} 78. Kg6 {[%emt 0:00:10]} Rg1 {[%emt 0:00:01]} 79. Bd5 {[%emt 0:00:10]} Ke8 {[%emt 0:00:22]} 80. Kf5 {[%emt 0:00:27]} Rf1+ {[%emt 0:00:05]} 81. Ke6 {[%emt 0:00:21]} Kf8 {[%emt 0:00:01]} 82. Be4 {[%emt 0:00:21]} Rf2 {[%emt 0:00:04]} 83. Nh7+ {[%emt 0:00:14]} Kg8 {[%emt 0:00:35]} 84. Ke7 {[%emt 0:00:04]} Rf4 {[%emt 0:00:16]} 85. Bg6 {[%emt 0:00:03]} Rf1 {[%emt 0:00:09]} 86. f7+ {[%emt 0:00:08]} Rxf7+ {[%emt 0:00:02]} 87. Bxf7+ {[%emt 0:00:29]} Kxh7 {[%emt 0:00:21]} 1/2-1/2

[Event "FIDE Open World Rapid 2024"]
[Site "New York"]
[Date "2024.12.27"]
[Round "8.27"]
[White "Vachier-Lagrave, Maxime"]
[Black "Dardha, Daniel"]
[Result "0-1"]
[ECO "B30"]
[WhiteElo "2731"]
[BlackElo "2639"]
[Annotator "TA"]
[PlyCount "120"]
[EventDate "2024.12.14"]
[EventType "swiss"]
[EventCountry "USA"]
[SourceTitle "playchess.com"]
[Source "ChessBase"]
[SourceQuality "1"]
[TimeControl "900+10"]

{[%evp 50,120,6,0,0,0,0,0,0,0,0,0,-3,-14,0,-6,0,0,0,-8,0,0,0,0,0,-7,0,0,-4,-18,-18,-19,-29,-19,-29,-51,-64,-60,-51,-51,-58,-58,-58,-131,-131,-131,-131,-131,-131,-131,-131,-131,-131,-131,-131,-131,-131,-131,-131,-29947,-29949,-29944,-12843,-12831,-12836,-12793,-12689,-12670,-10901,-5400,-590,-29968,-29968]} 1. e4 {[%emt 0:00:01]} c5 {[%emt 0:00:02]} 2. Nf3 {[%emt 0:00:02]} Nc6 {[%emt 0:00:01]} 3. Bb5 {[%emt 0:00:06]} e6 {[%emt 0:00:03]} 4. O-O {[%emt 0:00:09]} Nge7 {[%emt 0:00:02]} 5. d4 {[%emt 0:00:02]} cxd4 {[%emt 0:00:02]} 6. Nxd4 {[%emt 0:00:01]} Qb6 {[%emt 0:00:03]} 7. Nxc6 {[%emt 0:00:12] B30: Sicilian: 2...Nc6 3 Bb5, lines without ...g6.} bxc6 {[%emt 0:00:02]} 8. Bd3 {[%emt 0:00:09]} Ng6 {[%emt 0:00:06]} 9. Kh1 {[%emt 0:00:06]} e5 {[%emt 0:01:37]} 10. Nd2 {[%emt 0:00:27]} Be7 {[%emt 0:00:24]} 11. Nc4 {[%emt 0:00:35]} Qc7 {[%emt 0:00:15]} 12. Ne3 {[%emt 0:00:02]} d6 $146 {[%emt 0:00:21]} ({Predecessor:} 12... O-O 13. Nf5 Bf6 14. c4 d6 15. c5 d5 16. Nd6 Be6 17. Qa4 Nf4 18. Ba6 dxe4 19. Nxe4 {0-1 Radlovacki,J (2381)-Vuckovic,B (2558) Gligoric Cup 3rd 2015 (6.1)}) 13. Nf5 {[%emt 0:00:17]} O-O {[%emt 0:01:27]} 14. c4 {[%emt 0:00:39]} Nf4 {[%emt 0:01:28]} 15. Bc2 {[%emt 0:00:28]} Ne6 {[%emt 0:00:18]} 16. b4 {[%emt 0:02:19]} Rd8 {[%emt 0:01:30]} 17. Nxe7+ {[%emt 0:01:04]} Qxe7 {[%emt 0:00:02]} 18. Be3 {[%emt 0:00:01]} Ba6 {[%emt 0:01:28]} 19. Bd3 {[%emt 0:00:30]} d5 {[%emt 0:01:10]} 20. exd5 {[%emt 0:00:43]} cxd5 {[%emt 0:00:02]} 21. cxd5 {[%emt 0:00:02]} Bxd3 {[%emt 0:00:02]} 22. Qxd3 {[%emt 0:00:01]} Qxb4 {[%emt 0:00:12]} 23. Rfd1 {[%emt 0:02:55]} Nf4 {[%emt 0:00:32]} 24. Bxf4 {[%emt 0:00:02]} Qxf4 {[%emt 0:00:03]} 25. Kg1 {[%emt 0:00:01]} Rd6 {[%emt 0:00:52]} 26. g3 {[%emt 0:00:59]} Qa4 {[%emt 0:00:36]} 27. Qc3 {[%emt 0:00:19]} Qe4 {[%emt 0:00:59]} 28. Rd2 {[%emt 0:01:49]} Rad8 {[%emt 0:00:32]} (28... Rxd5 $2 29. f3 Rxd2 30. fxe4 $18) 29. Rad1 {[%emt 0:00:19]} h5 {[%emt 0:00:02]} 30. f3 $1 {[%emt 0:00:21]} Qf5 {[%emt 0:00:02]} 31. Qe3 {[%emt 0:00:02]} a6 {[%emt 0:00:47]} 32. h4 {[%emt 0:00:46]} g6 {[%emt 0:00:42]} 33. Kg2 {[%emt 0:00:13]} Kg7 {[%emt 0:00:18]} 34. Rd3 {[%emt 0:00:59]} Rc8 {[%emt 0:00:21]} 35. Rc3 {[%emt 0:00:47]} Rb8 {[%emt 0:00:29]} 36. Qe2 {[%emt 0:00:54]} Rb5 {[%emt 0:00:29]} 37. Rcd3 {[%emt 0:00:02]} g5 {[%emt 0:00:15]} 38. a4 {[%emt 0:00:56]} Rb4 {[%emt 0:00:34]} 39. Qd2 {[%emt 0:01:48]} Rxa4 {[%emt 0:00:12]} 40. Qxg5+ {[%emt 0:00:01]} (40. hxg5 {keeps more tension.} Rc4 41. Qa2 Rb4 42. Qd2) 40... Qxg5 {[%emt 0:00:01]} 41. hxg5 {[%emt 0:00:01]} Kg6 {[%emt 0:00:42]} 42. Rc1 {[%emt 0:00:01]} Kxg5 {[%emt 0:00:09]} 43. Rc6 {[%emt 0:00:33]} Rxc6 {[%emt 0:01:05]} 44. dxc6 {[%emt 0:00:01]} Rc4 {[%emt 0:00:02]} 45. Rd6 {[%emt 0:00:01]} Rc2+ {[%emt 0:00:25]} 46. Kf1 {[%emt 0:00:01] [#]} (46. Kh3 $15) 46... f5 $1 $17 {[%emt 0:01:00]} 47. Re6 {[%emt 0:00:03]} h4 {[%emt 0:00:26]} 48. gxh4+ {[%emt 0:00:02]} Kxh4 {[%emt 0:00:02]} 49. Rxe5 {[%emt 0:00:09] [#]} f4 $1 {[%emt 0:00:03]} 50. Ra5 {[%emt 0:00:59]} Rxc6 {[%emt 0:00:27]} 51. Ke2 {[%emt 0:00:05]} Rc2+ {[%emt 0:00:22]} 52. Kd3 {[%emt 0:00:04]} Rb2 {[%emt 0:00:05]} 53. Ke4 {[%emt 0:00:32]} Rb4+ {[%emt 0:00:02]} 54. Kf5 $2 {[%emt 0:00:03][%mdl 8192]} (54. Kd3 $17) 54... Kg3 {[%emt 0:00:13]} (54... Rb5+ 55. Rxb5 axb5 56. Kxf4 $11) 55. Ra3 {[%emt 0:00:03]} Rb5+ {[%emt 0:00:12]} (55... a5 $142 56. Ke5 a4 57. Kf5 Kf2 58. Kg4 Ke2 59. Rc3 Kd2 60. Rc7 Kd3 61. Kf5 Rc4 62. Rh7 Kc3 63. Ke6 a3 64. Rh2 Kb3 65. Rh7 a2 66. Rh1 Kb2 67. Kd5 Ra4 (67... a1=R 68. Rxa1 Rb4 69. Rd1 $11) 68. Re1 a1=Q (68... a1=B 69. Re4 $15) (68... a1=R $2 69. Re2+ Kc3 70. Ke5 $19) 69. Rxa1 Rxa1 70. Ke5 Ra4 71. Ke6 Kc3 72. Kf6 Kd2 73. Kf7 Ke2 74. Ke7 Kxf3 75. Kd6 Ke3 76. Kc6 f3 77. Kb5 Ra2 (77... f2 {leads to mate.} 78. Kxa4 f1=Q 79. Ka5 Qb1 80. Ka6 Kd4 81. Ka7 Kc5 82. Ka8 Kc6 83. Ka7 Qb7#) 78. Kc5 f2 79. Kd5 f1=Q (79... f1=R {gets mated.} 80. Kc5 Ke4 81. Kd6 Ra6+ 82. Ke7 Ra7+ 83. Kd6 Rc1 84. Ke6 Rc6#) 80. Ke6 Qc4+ 81. Ke7 Ra6 82. Ke8 Qc7 83. Kf8 Ra8#) 56. Ke4 $19 {[%emt 0:00:13]} a5 {[%emt 0:00:01]} 57. Kd4 {[%emt 0:00:05]} a4 {[%emt 0:00:15]} 58. Ke4 {[%emt 0:00:20]} Rb3 {[%emt 0:00:14]} 59. Rxa4 {[%emt 0:00:02]} Rxf3 {[%emt 0:00:07]} (59... Re3+ $142 60. Kf5 Rxf3) 60. Kf5 {[%emt 0:00:01]} Rb3 {[%emt 0:00:01]} 0-1

[Event "FIDE Open World Rapid 2024"]
[Site "New York"]
[Date "2024.12.27"]
[Round "8.27"]
[White "Thavandiran, Shiyam"]
[Black "Lou, Yiping"]
[Result "0-1"]
[ECO "B40"]
[WhiteElo "2410"]
[BlackElo "2459"]
[Annotator "ChessBase"]
[PlyCount "64"]
[EventDate "2024.12.14"]
[EventType "swiss"]
[EventCountry "USA"]
[SourceTitle "playchess.com"]
[Source "ChessBase"]
[SourceQuality "1"]
[TimeControl "900+10"]

1. e4 {[%emt 0:01:00]} c5 {[%emt 0:00:01]} 2. Nf3 {[%emt 0:00:19]} e6 {[%emt 0:00:01]} 3. g3 {[%emt 0:00:04]} Nc6 {[%emt 0:00:08]} 4. Bg2 {[%emt 0:00:14]} Nf6 {[%emt 0:00:04]} 5. Qe2 {[%emt 0:00:02]} e5 {[%emt 0:00:08]} 6. O-O {[%emt 0:00:54]} Be7 {[%emt 0:00:02]} 7. c3 {[%emt 0:02:11]} O-O {[%emt 0:00:04]} 8. Na3 {[%emt 0:00:50]} Re8 {[%emt 0:00:17]} 9. Nc4 {[%emt 0:00:26]} Bf8 {[%emt 0:00:08]} 10. a4 {[%emt 0:00:03]} Nxe4 {[%emt 0:01:24]} 11. Nfxe5 {[%emt 0:03:07]} d5 {[%emt 0:01:59]} 12. Nxc6 {[%emt 0:02:34]} bxc6 {[%emt 0:00:11]} 13. Ne3 {[%emt 0:00:02]} d4 {[%emt 0:01:33]} 14. Bxe4 {[%emt 0:00:48]} Rxe4 {[%emt 0:00:18]} 15. Qf3 {[%emt 0:00:09]} Re8 {[%emt 0:00:41]} 16. cxd4 {[%emt 0:03:00]} cxd4 {[%emt 0:00:10]} 17. Ng2 {[%emt 0:00:09]} Ba6 {[%emt 0:01:12]} 18. d3 {[%emt 0:00:08]} Rb8 {[%emt 0:00:02]} 19. Bf4 {[%emt 0:00:21]} Rxb2 {[%emt 0:00:16]} 20. Rfe1 {[%emt 0:01:52]} c5 {[%emt 0:01:02]} 21. Rxe8 {[%emt 0:00:12]} Qxe8 {[%emt 0:00:01]} 22. Re1 {[%emt 0:00:02]} Qc8 {[%emt 0:00:24]} 23. g4 {[%emt 0:00:19]} Bb7 {[%emt 0:00:26]} 24. Qg3 {[%emt 0:00:01]} Qc6 {[%emt 0:00:45]} 25. h4 {[%emt 0:00:15]} c4 {[%emt 0:00:32]} 26. dxc4 {[%emt 0:00:16]} Rb3 {[%emt 0:00:06]} 27. Qh2 {[%emt 0:00:01]} Bb4 {[%emt 0:01:02]} 28. Bd2 {[%emt 0:00:04]} Bd6 {[%emt 0:01:30]} 29. Nf4 {[%emt 0:00:09]} Rb2 {[%emt 0:00:52]} 30. Bc1 {[%emt 0:00:06]} Rb1 {[%emt 0:00:09]} 31. Qg2 {[%emt 0:00:27]} Bxf4 {[%emt 0:00:19]} 32. Qd5 {[%emt 0:00:12]} h6 {[%emt 0:00:40]} 0-1

[Event "FIDE Open World Rapid 2024"]
[Site "New York"]
[Date "2024.12.27"]
[Round "8.28"]
[White "Christiansen, Johan-Sebastian"]
[Black "Damjanovic, Vuk"]
[Result "0-1"]
[ECO "C41"]
[WhiteElo "2661"]
[BlackElo "2368"]
[Annotator "ChessBase"]
[PlyCount "66"]
[EventDate "2024.12.14"]
[EventType "swiss"]
[EventCountry "USA"]
[SourceTitle "playchess.com"]
[Source "ChessBase"]
[SourceQuality "1"]
[TimeControl "900+10"]

1. e4 {[%emt 0:00:02]} d6 {[%emt 0:00:04]} 2. d4 {[%emt 0:00:02]} Nf6 {[%emt 0:00:02]} 3. Nc3 {[%emt 0:00:01]} e5 {[%emt 0:00:01]} 4. Nf3 {[%emt 0:00:03]} Nbd7 {[%emt 0:00:01]} 5. Rg1 {[%emt 0:00:02]} c6 {[%emt 0:00:01]} 6. g4 {[%emt 0:00:04]} h6 {[%emt 0:00:02]} 7. h4 {[%emt 0:00:03]} exd4 {[%emt 0:00:01]} 8. Nxd4 {[%emt 0:00:02]} Ne5 {[%emt 0:00:01]} 9. Be2 {[%emt 0:00:37]} d5 {[%emt 0:01:23]} 10. exd5 {[%emt 0:01:46]} Nxd5 {[%emt 0:00:04]} 11. Nxd5 {[%emt 0:00:23]} Qxd5 {[%emt 0:00:03]} 12. Nb3 {[%emt 0:00:02]} Qxd1+ {[%emt 0:00:54]} 13. Kxd1 {[%emt 0:00:56]} Be7 {[%emt 0:00:12]} 14. h5 {[%emt 0:00:09]} Be6 {[%emt 0:00:31]} 15. Be3 {[%emt 0:02:08]} Nc4 {[%emt 0:01:33]} 16. Bd4 {[%emt 0:00:25]} O-O-O {[%emt 0:00:48]} 17. Ke1 {[%emt 0:00:02]} Bf6 {[%emt 0:00:19]} 18. Bxf6 {[%emt 0:00:52]} gxf6 {[%emt 0:00:02]} 19. Nc5 {[%emt 0:00:27]} Rhe8 {[%emt 0:00:36]} 20. b3 {[%emt 0:01:46]} Ne5 {[%emt 0:04:29]} 21. Nxe6 {[%emt 0:00:05]} Rxe6 {[%emt 0:00:04]} 22. Rg3 {[%emt 0:00:03]} Nxg4 {[%emt 0:00:40]} 23. Rxg4 {[%emt 0:00:19]} Rde8 {[%emt 0:00:01]} 24. Kf1 {[%emt 0:00:02]} Rxe2 {[%emt 0:00:06]} 25. Rg7 {[%emt 0:00:01]} Rxc2 {[%emt 0:00:36]} 26. Rxf7 {[%emt 0:00:03]} Re5 {[%emt 0:00:35]} 27. Rd1 {[%emt 0:00:57]} Rf5 {[%emt 0:00:35]} 28. Rdd7 {[%emt 0:00:03]} Rfxf2+ {[%emt 0:01:06]} 29. Ke1 {[%emt 0:00:01]} Rce2+ {[%emt 0:00:27]} 30. Kd1 {[%emt 0:00:02]} Rxa2 {[%emt 0:00:08]} 31. Ke1 {[%emt 0:01:13]} Rh2 {[%emt 0:00:31]} 32. Rc7+ {[%emt 0:00:21]} Kb8 {[%emt 0:00:00]} 33. Rxb7+ {[%emt 0:00:02]} Ka8 {[%emt 0:00:01]} 0-1

[Event "FIDE Open World Rapid 2024"]
[Site "New York"]
[Date "2024.12.27"]
[Round "8.28"]
[White "Le, Tuan Minh"]
[Black "Wei, Yi"]
[Result "0-1"]
[ECO "C50"]
[WhiteElo "2598"]
[BlackElo "2753"]
[Annotator "TA"]
[PlyCount "63"]
[EventDate "2024.12.14"]
[EventType "swiss"]
[EventCountry "USA"]
[SourceTitle "playchess.com"]
[Source "ChessBase"]
[SourceQuality "1"]
[TimeControl "900+10"]

{[%evp 15,63,34,44,19,29,21,33,37,33,21,46,0,18,0,81,39,92,96,94,47,54,38,74,50,79,8,7,0,0,0,0,0,0,-351,-348,-312,-340,-520,-544,-675,-647,-631,-353,-560,-567,-785,-534,-662,-621,-864]} 1. d4 {[%emt 0:00:04]} d6 {[%emt 0:02:35]} 2. e4 {[%emt 0:00:07]} Nf6 {[%emt 0:00:20]} 3. Nc3 {[%emt 0:00:03]} e5 {[%emt 0:00:02]} 4. Nf3 {[%emt 0:00:02]} Nbd7 {[%emt 0:00:01]} 5. Bc4 {[%emt 0:00:44]} Be7 {[%emt 0:00:02]} 6. O-O {[%emt 0:00:03]} O-O {[%emt 0:00:03]} 7. Re1 {[%emt 0:00:02]} exd4 {[%emt 0:00:36]} 8. Nxd4 {[%emt 0:00:03]} Ne5 {[%emt 0:00:02]} 9. Bf1 {[%emt 0:00:29]} Re8 {[%emt 0:00:03]} 10. h3 {[%emt 0:00:15]} h6 {[%emt 0:00:27]} 11. Bf4 {[%emt 0:00:24]} Bf8 {[%emt 0:00:05]} 12. Qd2 {[%emt 0:02:52]} c6 {[%emt 0:00:04]} 13. Rad1 {[%emt 0:00:10]} (13. a4 $14) 13... Qc7 {[%emt 0:00:26]} 14. Bh2 {[%emt 0:01:58]} Bd7 {[%emt 0:00:45]} (14... b5 $11 {keeps the balance.}) 15. Kh1 {[%emt 0:01:04]} Rad8 {[%emt 0:00:10]} (15... b5 $14) 16. f4 $16 {[%emt 0:00:34]} Ng6 {[%emt 0:00:04]} 17. Nf3 {[%emt 0:00:56]} (17. e5 $16 Nd5 (17... dxe5 18. fxe5 Nxe5 19. Rxe5 $16) 18. Nxd5 cxd5 19. e6 (19. Nb5 Qc6 $16) 19... fxe6 20. Qd3) 17... Bc8 $14 {[%emt 0:00:57]} 18. Bd3 {[%emt 0:00:22]} Nd7 {[%emt 0:02:37]} 19. a3 {[%emt 0:02:16][%cal Oe4e5]} a5 {[%emt 0:03:35]} 20. Bc4 {[%emt 0:01:56]} (20. e5 $16) 20... b5 $11 {[%emt 0:01:11]} 21. Nxb5 {[%emt 0:03:30]} cxb5 {[%emt 0:00:02]} 22. Bxf7+ $1 {[%emt 0:00:03]} Kxf7 {[%emt 0:00:01]} 23. Qd5+ $1 {[%emt 0:00:00]} Ke7 {[%emt 0:00:13]} 24. f5 $2 {[%emt 0:00:51][%mdl 8192]} (24. Qh5 $1 $11 {and White is okay.} Kf7 25. Qd5+ Ke7 (25... Re6 26. f5 $15) 26. Qh5) 24... Nf6 $19 {[%emt 0:00:32]} 25. Qxb5 {[%emt 0:00:19]} Ne5 {[%emt 0:02:20] Hoping for ...Bd7.} 26. Bxe5 {[%emt 0:00:04]} (26. Rxd6 $142 Rxd6 (26... Kxd6 $2 27. Nxe5 Ke7 28. Ng6+ Kf7 29. Bxc7 $18) (26... Nxf3 27. Re6+ Bxe6 28. Bxc7 $15) 27. Bxe5) 26... dxe5 {[%emt 0:00:02]} 27. Nxe5 {[%emt 0:00:03] Nc6+ would now be deadly.} Rxd1 {[%emt 0:00:21]} (27... Qxc2 $2 {perishes.} 28. Rc1 $18 (28. Nc6+ Kf7 $16)) 28. Rxd1 {[%emt 0:00:02]} Bd7 {[%emt 0:00:09] Prevents Nc6+.} 29. Ng6+ {[%emt 0:00:17]} (29. Nxd7 {was the only chance.} Rd8 (29... Nxd7 $2 30. Qd5 $19) 30. e5 Nxd7 31. Rd6) 29... Kf7 {[%emt 0:00:14]} 30. Rxd7+ {[%emt 0:00:25]} Qxd7 {[%emt 0:00:30]} 31. Qb3+ {[%emt 0:00:09] [#]} Nd5 $1 {[%emt 0:00:02]} 32. Nf4 {[%emt 0:00:23]} (32. Qc4 Kg8) 0-1

[Event "FIDE Open World Rapid 2024"]
[Site "New York"]
[Date "2024.12.27"]
[Round "8.29"]
[White "Nesterov, Arseniy"]
[Black "Xiong, Jeffery"]
[Result "0-1"]
[ECO "D37"]
[WhiteElo "2599"]
[BlackElo "2636"]
[Annotator "ChessBase"]
[PlyCount "89"]
[EventDate "2024.12.14"]
[EventType "swiss"]
[EventCountry "USA"]
[SourceTitle "playchess.com"]
[Source "ChessBase"]
[SourceQuality "1"]
[TimeControl "900+10"]

1. d4 {[%emt 0:00:01]} Nf6 {[%emt 0:00:05]} 2. c4 {[%emt 0:00:01]} e6 {[%emt 0:00:02]} 3. Nf3 {[%emt 0:00:02]} a6 {[%emt 0:00:09]} 4. Nc3 {[%emt 0:00:01]} d5 {[%emt 0:00:02]} 5. cxd5 {[%emt 0:00:06]} exd5 {[%emt 0:00:02]} 6. Bg5 {[%emt 0:00:01]} Be6 {[%emt 0:00:07]} 7. e3 {[%emt 0:00:01]} h6 {[%emt 0:00:02]} 8. Bh4 {[%emt 0:00:54]} Nbd7 {[%emt 0:00:03]} 9. Bd3 {[%emt 0:00:04]} Bd6 {[%emt 0:00:05]} 10. O-O {[%emt 0:00:08]} c6 {[%emt 0:00:10]} 11. Bg3 {[%emt 0:00:49]} Bxg3 {[%emt 0:01:07]} 12. hxg3 {[%emt 0:00:01]} Qc7 {[%emt 0:00:03]} 13. Qc2 {[%emt 0:00:10]} O-O {[%emt 0:01:23]} 14. Ne2 {[%emt 0:00:25]} Bg4 {[%emt 0:00:13]} 15. Nf4 {[%emt 0:00:08]} Bxf3 {[%emt 0:00:43]} 16. gxf3 {[%emt 0:00:01]} Qd6 {[%emt 0:00:29]} 17. Rac1 {[%emt 0:00:17]} Rfe8 {[%emt 0:00:09]} 18. Kg2 {[%emt 0:00:04]} Nf8 {[%emt 0:01:15]} 19. Rfd1 {[%emt 0:00:46]} Ne6 {[%emt 0:00:21]} 20. Nxe6 {[%emt 0:00:03]} Rxe6 {[%emt 0:00:46]} 21. Qc5 {[%emt 0:00:16]} Qd8 {[%emt 0:00:53]} 22. b4 {[%emt 0:00:20]} h5 {[%emt 0:00:15]} 23. a4 {[%emt 0:00:51]} g6 {[%emt 0:01:35]} 24. b5 {[%emt 0:00:17]} axb5 {[%emt 0:00:01]} 25. axb5 {[%emt 0:00:01]} h4 {[%emt 0:02:15]} 26. g4 {[%emt 0:00:20]} Qc7 {[%emt 0:00:17]} 27. Qc2 {[%emt 0:02:25]} Kg7 {[%emt 0:00:39]} 28. Rh1 {[%emt 0:01:51]} Rxe3 {[%emt 0:00:54]} 29. Rxh4 {[%emt 0:00:02]} Ree8 {[%emt 0:00:36]} 30. bxc6 {[%emt 0:00:16]} bxc6 {[%emt 0:00:01]} 31. Qxc6 {[%emt 0:07:24]} Qf4 {[%emt 0:00:05]} 32. Qc3 {[%emt 0:00:06]} Rac8 {[%emt 0:02:39]} 33. Qxc8 {[%emt 0:00:01]} Rxc8 {[%emt 0:00:01]} 34. Rxc8 {[%emt 0:00:01]} Qxd4 {[%emt 0:00:02]} 35. Bf1 {[%emt 0:01:49]} Nh7 {[%emt 0:00:50]} 36. Re8 {[%emt 0:00:39]} Ng5 {[%emt 0:00:12]} 37. Re3 {[%emt 0:00:23]} Ne6 {[%emt 0:00:10]} 38. Kg1 {[%emt 0:00:01]} Qf6 {[%emt 0:00:19]} 39. Rh2 {[%emt 0:00:22]} d4 {[%emt 0:00:01]} 40. Ra3 {[%emt 0:00:02]} Nf4 {[%emt 0:00:48]} 41. Ra8 {[%emt 0:00:09]} Qc6 {[%emt 0:00:34]} 42. Rhh8 {[%emt 0:00:13]} Qxf3 {[%emt 0:00:34]} 43. Rhd8 {[%emt 0:00:13]} Qxg4+ {[%emt 0:00:06]} 44. Kh1 {[%emt 0:00:00]} d3 {[%emt 0:00:39]} 45. Rd4 {[%emt 0:00:21]} 0-1